Workbook

Sheet 封面
A1: 2024年11月22日经市八届人大常委会第二十二次会议审议通过
A4: 2024年阳江高新区财政预算调整方案表格
A5: 附件1： 2024年阳江高新区一般公共预算调整方案表格
A6: 附件2： 2024年阳江高新区政府性基金预算调整方案表格

Sheet 高新区一般公共预算收支调整表
A1: 表一
A2: 2024年阳江高新区一般公共预算收支调整表
H3: 单位：万元
A4: 项 目 | B4: 2024年预算 | C4: 预算调整 | E4: 项 目 | F4: 2024年预算 | G4: 预算调整
C5: 调整变动数 | D5: 调整后金额 | G5: 调整变动数 | H5: 调整后金额
A6: 一、税收收入 | B6: =SUM(B7:B19) -> 61,457 | C6: =SUM(C7:C20) -> 7,400 | D6: =SUM(B6:C6) -> 68,857 | E6: 一、一般公共服务支出 | F6: 13,782 | G6: -1,834 | H6: =SUM(F6:G6) -> 11,948
A7: 增值税 | B7: 20,632 | C7: 379 | D7: 21,011 | E7: 二、国防支出 | F7: 106 | G7: 0 | H7: 106
A8: 企业所得税 | B8: 6,500 | C8: 6,168 | D8: 12,668 | E8: 三、公共安全支出 | F8: 1,331 | G8: 0 | H8: 1,331
A9: 个人所得税 | B9: 1,200 | C9: -200 | D9: 1,000 | E9: 四、教育支出 | F9: 15,569 | G9: -89 | H9: 15,480
A10: 资源税 | B10: 0 | C10: 0 | D10: 0 | E10: 五、科学技术支出 | F10: 2,655 | G10: -360 | H10: 2,295
A11: 城市维护建设税 | B11: 4,500 | C11: 1,000 | D11: 5,500 | E11: 六、文化旅游体育与传媒支出 | F11: 496 | G11: 27 | H11: 523
A12: 房产税 | B12: 7,000 | C12: -1,000 | D12: 6,000 | E12: 七、社会保障和就业支出 | F12: 15,429 | G12: -740 | H12: 14,689
A13: 印花税 | B13: 10,000 | C13: -1,844 | D13: 8,156 | E13: 八、卫生健康支出 | F13: 10,825 | G13: -51 | H13: 10,774
A14: 城镇土地使用税 | B14: 2,000 | C14: -500 | D14: 1,500 | E14: 九、节能环保支出 | F14: 4,907 | G14: 284 | H14: 5,191
A15: 土地增值税 | B15: 160 | C15: -32 | D15: 128 | E15: 十、城乡社区支出 | F15: 2,180 | G15: 0 | H15: 2,180
A16: 车船税 | B16: 15 | C16: -5 | D16: 10 | E16: 十一、农林水支出 | F16: 6,663 | G16: 182 | H16: 6,845
A17: 耕地占用税 | B17: 7,000 | C17: 4,462 | D17: 11,462 | E17: 十二、交通运输支出 | F17: 255 | G17: 0 | H17: 255
A18: 契税 | B18: 2,000 | C18: -1,115 | D18: 885 | E18: 十三、资源勘探工业信息等支出 | F18: 8,321 | G18: -4,500 | H18: 3,821
A19: 环境保护税 | B19: 450 | C19: 81 | D19: 531 | E19: 十四、商业服务业等支出 | F19: 0 | G19: 0 | H19: 0
A20: 其他税收收入 | B20: 0 | C20: 6 | D20: 6 | E20: 十五、金融支出 | F20: 0 | G20: 0 | H20: 0
A21: 二、非税收入 | B21: =SUM(B22:B27) -> 11,000 | C21: =SUM(C22:C27) -> -7,400 | D21: 3,600 | E21: 十六、自然资源海洋气象等支出 | F21: 412 | G21: 0 | H21: 412
A22: 专项收入 | B22: 3,000 | C22: -103 | D22: 2,897 | E22: 十七、住房保障支出 | F22: 2,596 | G22: 15 | H22: 2,611
A23: 行政事业性收费收入 | B23: 1,200 | C23: -1,036 | D23: 164 | E23: 十八、粮油物资储备支出 | F23: 203 | G23: 0 | H23: 203
A24: 罚没收入 | B24: 6,100 | C24: -5,727 | D24: 373 | E24: 十九、灾害防治及应急管理支出 | F24: 2,362 | G24: -13 | H24: 2,349
A25: 国有资本经营收入 | B25: 0 | C25: 0 | D25: 0 | E25: 二十、预备费 | F25: 1,613 | G25: -41 | H25: 1,572
A26: 国有资源（资产）有偿使用收入 | B26: 700 | C26: -534 | D26: 166 | E26: 二十一、其他支出 | F26: 26,237 | G26: -1,940 | H26: 24,297
A27: 其他收入 | B27: 0 | C27: 0 | D27: 0 | E27: 二十二、债务付息支出 | F27: 2,893 | G27: 0 | H27: 2,893
A28: 一般公共预算收入合计 | B28: =SUM(B6,B21) -> 72,457 | C28: =SUM(C6,C21) -> 0 | D28: =SUM(D6,D21) -> 72,457 | E28: 一般公共预算支出合计 | F28: =SUM(F6:F27) -> 118,835 | G28: -9,060 | H28: 109,775
A29: 转移性收入合计 | B29: =SUM(B30:B34) -> 77,395 | C29: =SUM(C30:C34) -> -9,060 | D29: =SUM(D30:D34) -> 68,335 | E29: 转移性支出合计 | F29: =SUM(F30:F32) -> 31,017 | G29: =SUM(G30:G32) -> 0 | H29: =SUM(H30:H32) -> 31,017
A30: 上级补助收入 | B30: 20,846 | C30: 0 | D30: =SUM(B30:C30) -> 20,846 | E30: 补助下级支出 | F30: 0 | G30: 0 | H30: =SUM(F30:G30) -> 0
A31: 下级上解收入 | B31: 0 | C31: 0 | D31: 0 | E31: 上解支出 | F31: 30,349 | G31: 0 | H31: 30,349
A32: 上年结转收入 | B32: 30,049 | C32: -60 | D32: 29,989 | E32: 债务还本支出 | F32: 668 | G32: 0 | H32: 668
A33: 调入资金 | B33: 26,500 | C33: -9,000 | D33: 17,500
A34: 债务转贷收入 | B34: 0 | C34: 0 | D34: 0
A35: 收 入 总 计 | B35: =SUM(B28:B29) -> 149,852 | C35: -9,060 | D35: 140,792 | E35: 支 出 总 计 | F35: 149,852 | G35: -9,060 | H35: 140,792

Sheet 高新区一般公共预算调整项目表
A1: 表二
A2: 2024年阳江高新区一般公共预算调整项目表
F3: 单位：万元
A4: 序号 | B4: 项目名称 | C4: 2024年预算 | D4: 调整变动数 | E4: 预算调整后金额 | F4: 备注
A5: 一 | B5: 调整安排项目小计 | C5: =SUM(C46,C6,C56) -> 51,365 | D5: =SUM(D46,D6,D56) -> -9,060 | E5: =SUM(E46,E6,E56) -> 42,305 | F5: =SUM(F46,F6) -> 0
A6: （一） | B6: 调减支出安排项目 | C6: =SUM(C7:C45) -> 20,361 | D6: =SUM(D7:D45) -> -10,413 | E6: =SUM(E7:E45) -> 9,948
A7: 1 | B7: 预备费 | C7: 1,613 | D7: -43 | E7: 1,570 | F7: 管委会
A8: 2 | B8: 预留机动经费 | C8: 3,000 | D8: -2,000 | E8: 1,000 | F8: 管委会
A9: 3 | B9: 预留规范全区工资津补贴经费 | C9: 2,000 | D9: -1,640 | E9: 360 | F9: 管委会
A10: 4 | B10: 行政事业单位经费 | C10: 1,392 | D10: -67 | E10: 1,325 | F10: 区行政事业单位
A11: 5 | B11: 平冈镇村（居）民小组党建阵地建设经费 | C11: 130 | D11: -50 | E11: 80 | F11: 平冈镇人民政府
A12: 6 | B12: 2023年全区工部职工体检经费 | C12: 120 | D12: -16 | E12: 104 | F12: 党政办公室
A13: 7 | B13: 创建全国文明城市宣传工作经费 | C13: 15 | D13: -10 | E13: 5 | F13: 党政办公室
A14: 8 | B14: 重大节日慰问经费 | C14: 15 | D14: -2 | E14: 13 | F14: 党政办公室
A15: 9 | B15: 全区党建工作经费 | C15: 60 | D15: -10 | E15: 50 | F15: 区委组织部
A16: 10 | B16: 2024年正常离任村（社区）干部生活补助经费 | C16: 100 | D16: -100 | E16: =SUM(C16:D16) -> 0 | F16: 区委组织部
A17: 11 | B17: 全区干部培训 | C17: 80 | D17: -30 | E17: 50 | F17: 区委组织部
A18: 12 | B18: 教师培训 | C18: 128 | D18: -68 | E18: 60 | F18: 教育文化体育局
A19: 13 | B19: 营养改善 | C19: 14 | D19: -11 | E19: 3 | F19: 教育文化体育局
A20: 14 | B20: 原民办代课教师生活困难补助经费 | C20: 160 | D20: -10 | E20: 150 | F20: 教育文化体育局
A21: 15 | B21: 农村最低生活保障 | C21: 566 | D21: -296 | E21: 270 | F21: 社会事务管理局
A22: 16 | B22: 城镇最低生活保障 | C22: 81 | D22: -45 | E22: 36 | F22: 社会事务管理局
A23: 17 | B23: 农村特困人员救助供养（五保） | C23: 432 | D23: -281 | E23: 151 | F23: 社会事务管理局
A24: 18 | B24: 城镇特困人员救助供养（五保） | C24: 31 | D24: -15 | E24: 16 | F24: 社会事务管理局
A25: 19 | B25: 退役士兵老年生活补助 | C25: 132 | D25: -52 | E25: 80 | F25: 社会事务管理局
A26: 20 | B26: 事实无人抚养儿童补助 | C26: 24 | D26: -7 | E26: 17 | F26: 社会事务管理局
A27: 21 | B27: 生活不能自理特困人员护理费 | C27: 209 | D27: -44 | E27: 165 | F27: 社会事务管理局
A28: 22 | B28: 数字财政信息化建设及维护费 | C28: 128 | D28: -49 | E28: 79 | F28: 财政局
A29: 23 | B29: 数字财政信息化硬件及设备费 | C29: 53 | D29: -47 | E29: 6 | F29: 财政局
A30: 24 | B30: 档案归档整理经费 | C30: 80 | D30: -54 | E30: 26 | F30: 财政局
A31: 25 | B31: 档案室配套设备购置经费 | C31: 10 | D31: -6 | E31: 4 | F31: 财政局
A32: 26 | B32: 投资审核建设经费 | C32: 10 | D32: -5 | E32: 5 | F32: 财政局
A33: 27 | B33: 创建国家高新区工作经费 | C33: 68 | D33: -35 | E33: 33 | F33: 科学技术局
A34: 28 | B34: 科技工作管理经费 | C34: 12 | D34: -7 | E34: 5 | F34: 科学技术局
A35: 29 | B35: 科技企业孵化器建设 | C35: 180 | D35: -28 | E35: 152 | F35: 科学技术局
A36: 30 | B36: 企业研发平台补助 | C36: 90 | D36: -90 | E36: =SUM(C36:D36) -> 0 | F36: 科学技术局
A37: 31 | B37: 高新技术企业奖励经费 | C37: 200 | D37: -200 | E37: 0 | F37: 科学技术局
A38: 32 | B38: 项目编制费 | C38: 71 | D38: -31 | E38: 40 | F38: 经济发展局
A39: 33 | B39: 园区基础设施投入 | C39: 2,800 | D39: -2,300 | E39: 500 | F39: 经济发展局
A40: 34 | B40: 产业转移园扶持企业发展专项资金 | C40: 4,000 | D40: -2,700 | E40: 1,300 | F40: 经济发展局
A41: 35 | B41: 阳江高新区突发环境事件应急预案修订一级突发环境事件风险评估编制 | C41: 6 | D41: -6 | E41: 0 | F41: 市生态环境局高新分局
A42: 36 | B42: 阳江滨海新区（阳江高新区）禽畜养殖污染防治规划编制项目 | C42: 10 | D42: -10 | E42: 0 | F42: 市生态环境局高新分局
A43: 37 | B43: 城乡居民医疗保险 | C43: 595 | D43: -35 | E43: 560 | F43: 市社会保险基金管理局高新分局
A44: 38 | B44: 消防业务经费 | C44: 1,646 | D44: -8 | E44: 1,638 | F44: 阳江市公安消防支队战勤保障大队
A45: 39 | B45: 特种装备维护保养经费 | C45: 99 | D45: -5 | E45: 94 | F45: 阳江市公安消防支队战勤保障大队
A46: （二） | B46: 新增支出安排项目 | C46: =SUM(C47:C55) -> 955 | D46: =SUM(D47:D55) -> 1,413 | E46: =SUM(E47:E55) -> 2,368 | F46: =SUM(F48:F55) -> 0
A47: 1 | B47: 全区单位增加人员工资经费 | C47: 0 | D47: 110 | E47: 110 | F47: 管委会
A48: 2 | B48: 高新区农村保洁补助资金 | C48: 0 | D48: 182 | E48: 182 | F48: 城市管理和综合执法局
A49: 3 | B49: 高新区清扫保洁及农村垃圾清运项目运营费用 | C49: 0 | D49: 640 | E49: 640 | F49: 城市管理和综合执法局
A50: 4 | B50: 特种车辆购置经费 | C50: 0 | D50: 18 | E50: 18 | F50: 区纪委
A51: 5 | B51: 全民健身活动经费 | C51: 5 | D51: 27 | E51: 32 | F51: 教育文化体育局
A52: 6 | B52: 高汇公司注册资本金 | C52: 150 | D52: 120 | E52: 270 | F52: 高汇公司
A53: 7 | B53: 污水处理厂费用 | C53: 800 | D53: 300 | E53: 1,100 | F53: 管委会
A54: 8 | B54: 2024年农村危房改造（7户） | C54: 0 | D54: 15 | E54: 15 | F54: 规划建设和交通局
A55: 9 | B55: 政府采购投诉处理法律服务费 | C55: 0 | D55: 1 | E55: 1 | F55: 财政局
A56: （三） | B56: 上年结转资金减少项目 | C56: 30,049 | D56: -60 | E56: 29,989 | F56: 上年结余资金收入调整。

Sheet 高新区政府性基金预算收支调整表
A1: 表三
A2: 2024年阳江高新区政府性基金预算收支调整表
H3: 单位：万元
A4: 项目 | B4: 2024年预算 | C4: 预算调整 | E4: 项目 | F4: 2024年预算 | G4: 预算调整
C5: 调整变动数 | D5: 调整后金额 | G5: 调整变动数 | H5: 调整后金额
A6: 一、政府性基金本级收入 | D6: =SUM(B6:C6) -> 0 | E6: 一、政府性基金本级支出
A7: （一）国有土地使用权出让收入 | B7: 46,472 | C7: -2,168 | D7: 44,304 | E7: （一）文化旅游体育与传媒支出 | F7: 0 | G7: 0 | H7: =SUM(F7:G7) -> 0
A8: （二）农业土地开发资金收入 | B8: 1,558 | C8: -332 | D8: 1,226 | E8: （二）农林水支出 | F8: 0 | G8: 0 | H8: =SUM(F8:G8) -> 0
A9: （三）城市基础设施配套费收入 | B9: 0 | C9: 0 | D9: 0 | E9: （三）城乡社区支出 | F9: 21,087 | G9: 4,301 | H9: =SUM(F9:G9) -> 25,388
A10: （四）污水处理费收入 | B10: 700 | C10: 300 | D10: 1,000 | E10: （四）其他支出 | F10: 184 | G10: 123,500 | H10: 123,684
A11: （五）彩票公益金收入 | B11: 0 | C11: 0 | D11: 0 | E11: （五）债务付息支出 | F11: 4,052 | G11: 0 | H11: 4,052
A14: 政府性基金本级收入小计 | B14: =SUM(B6:B11) -> 48,730 | C14: =SUM(C6:C11) -> -2,200 | D14: =SUM(D6:D11) -> 46,530 | E14: 政府性基金本级支出小计 | F14: =SUM(F7:F11) -> 25,323 | G14: 127,801 | H14: 153,124
A15: 二、上级补助收入 | B15: 110 | C15: 0 | D15: =SUM(B15:C15) -> 110 | E15: 二、补助下级支出 | F15: 0 | G15: 0 | H15: =SUM(F15:G15) -> 0
A16: 三、下级上解收入 | B16: 0 | C16: 0 | D16: 0 | E16: 三、上解支出 | F16: 0 | G16: 0 | H16: 0
A17: 四、债务转贷收入 | C17: 123,500 | D17: 123,500 | E17: 四、调出资金 | F17: 24,000 | G17: -6,500 | H17: 17,500
A18: 五、调入资金 | B18: 0 | C18: 0 | D18: 0 | E18: 五、债务转贷支出 | F18: 0 | G18: 0 | H18: 0
A19: 六、上年结转收入 | B19: 483 | C19: 1 | D19: 484 | E19: 六、债务还本支出 | F19: 0 | G19: 0 | H19: 0
A20: 收 入 合 计 | B20: =SUM(B14:B19) -> 49,323 | C20: =SUM(C14:C19) -> 121,301 | D20: =SUM(D14:D19) -> 170,624 | E20: 支 出 合 计 | F20: =SUM(F6,F14:F19) -> 49,323 | G20: 121,301 | H20: 170,624

Sheet 高新区政府性基金预算调整项目表
A1: 表四
A2: 2024年阳江高新区政府性基金预算调整项目表
F3: 单位：万元
A4: 序号 | B4: 项目名称 | C4: 2024年预算 | D4: 调整变动数 | E4: 预算调整后金额 | F4: 备注
B5: 政府性基金预算调整项目支出合计 | C5: =SUM(C6,C8,C19,C21,C24,C25,C26) -> 49,323 | D5: =SUM(D6,D8,D19,D21,D24,D25,D26) -> 121,301 | E5: =SUM(E6,E8,E19,E21,E24,E25,E26) -> 170,624
A6: 一 | B6: 污水处理费安排的支出 | C6: =SUM(C7:C7) -> 981 | D6: =SUM(D7:D7) -> 300 | E6: =SUM(E7:E7) -> 1,281
A7: （一） | B7: 污水处理费安排的支出 | C7: 981 | D7: =E7-C7 -> 300 | E7: 1,281 | F7: 政府性基金预算支出增加
A8: 二 | B8: 国有土地使用权出让收入安排的支出 | C8: =SUM(C9:C18) -> 18,548 | D8: =SUM(D9:D18) -> 4,333 | E8: =SUM(E9:E18) -> 22,881
A9: （一） | B9: 征地和拆迁补偿支出 | C9: 6,000 | D9: -400 | E9: 5,600 | F9: 政府性基金预算支出减少
A10: （二） | B10: 土地开发支出 | C10: 7,820 | D10: 5,331 | E10: 13,151 | F10: 政府性基金预算支出增加
A11: （三） | B11: 城市建设支出 | C11: 500 | D11: -150 | E11: 350 | F11: 政府性基金预算支出减少
A12: （四） | B12: 农村基础设施建设支出 | C12: 200 | D12: -80 | E12: 120 | F12: 政府性基金预算支出减少
A13: （五） | B13: 补助被征地农民支出 | C13: 600 | D13: 200 | E13: 800 | F13: 政府性基金预算支出增加
A14: （六） | B14: 土地出让业务支出 | C14: 200 | D14: -90 | E14: 110 | F14: 政府性基金预算支出减少
A15: （七） | B15: 农业生产发展支出 | C15: 660 | D15: -510 | E15: 150 | F15: 政府性基金预算支出减少
A16: （八） | B16: 农村社会事业支出 | C16: 1,500 | D16: -400 | E16: 1,100 | F16: 政府性基金预算支出减少
A17: （九） | B17: 农业农村生态环境支出 | C17: 400 | D17: 50 | E17: 450 | F17: 政府性基金预算支出增加
A18: （十） | B18: 其他国有土地使用权出让金支出 | C18: 668 | D18: 382 | E18: 1,050 | F18: 政府性基金预算支出增加
A19: 三 | B19: 农业土地开发资金安排的支出 | C19: =SUM(C20:C20) -> 1,558 | D19: =SUM(D20:D20) -> -332 | E19: =SUM(E20:E20) -> 1,226
A20: （一） | B20: 农业土地开发资金安排的支出 | C20: 1,558 | D20: =E20-C20 -> -332 | E20: 1,226 | F20: 政府性基金预算支出减少
A21: 四 | B21: 彩票公益金安排的支出 | C21: =SUM(C22:C23) -> 184 | D21: =SUM(D22:D23) -> 0 | E21: =SUM(E22:E23) -> 184
A22: （一） | B22: 福利彩票公益金支出 | C22: 182 | D22: 0 | E22: 182
A23: （二） | B23: 残疾人事业的福利彩票公益金支出 | C23: 2 | D23: 0 | E23: 2
A24: 五 | B24: 债务付息支出 | C24: 4,052 | D24: 0 | E24: 4,052
A25: 六 | B25: 调出资金 | C25: 24,000 | D25: -6,500 | E25: 17,500 | F25: 政府性基金预算支出减少
A26: 七 | B26: 其他地方自行试点项目收益专项债券收入安排的支出 | C26: 0 | D26: 123,500 | E26: 123,500 | F26: 政府性基金预算支出增加
